bitfinex-derivatives/quotes_BTCF0:USTF0_20250930
["timestamp","ask_amount","ask_price","bid_price","bid_amount"]
[1759197632533,1.97893292,114580.0,114570.0,1e-07]
[1759197634335,2.0413706,114580.0,114570.0,1e-07]
[1759197635138,1.97893292,114580.0,114570.0,1e-07]
[1759197635343,2.0413706,114580.0,114570.0,1e-07]
[1759197636840,1.97893292,114580.0,114570.0,1e-07]
[1759197637233,2.0413706,114580.0,114570.0,1e-07]
[1759197637533,1.97893292,114580.0,114570.0,1e-07]
[1759197637736,1.17605292,114580.0,114570.0,1e-07]
[1759197637936,1.97893292,114580.0,114570.0,1e-07]
[1759197639346,2.0413706,114580.0,114570.0,1e-07]
[1759197639638,1.6413706,114580.0,114570.0,1e-07]
[1759197640140,1.57893292,114580.0,114570.0,1e-07]
[1759197641339,1.6413706,114580.0,114570.0,1e-07]
[1759197641541,2.31289369,114580.0,114570.0,1e-07]
[1759197641737,2.22568019,114580.0,114530.0,0.3608]
[1759197641933,0.1234206,114540.0,114530.0,0.3608]
[1759197642138,0.94678693,114540.0,114530.0,0.3608]
[1759197643045,0.94678693,114540.0,114530.0,0.3688]
[1759197643745,1.01515906,114540.0,114530.0,0.3688]
[1759197644444,1.01515906,114540.0,114530.0,0.3808]
[1759197647145,0.21231906,114540.0,114530.0,0.3808]
[1759197647339,1.01515906,114540.0,114530.0,0.3808]
[1759197648647,0.21231906,114540.0,114530.0,0.3808]
[1759197648944,1.01515906,114540.0,114530.0,0.3808]
[1759197649446,0.21231906,114540.0,114530.0,0.3808]
[1759197649648,1.02409102,114540.0,114530.0,0.3808]
[1759197650352,0.22125102,114540.0,114530.0,0.3808]
[1759197650551,1.02409102,114540.0,114530.0,0.3808]
[1759197652352,1.29580331,114540.0,114530.0,0.65251229]
[1759197653245,0.49296331,114540.0,114530.0,0.65251229]
[1759197653651,1.29580331,114540.0,114530.0,0.65251229]
[1759197654252,0.49296331,114540.0,114530.0,0.73976059]
[1759197654452,1.29580331,114540.0,114530.0,0.73976059]
[1759197655053,0.22125102,114540.0,114530.0,0.73976059]
[1759197655253,1.02409102,114540.0,114530.0,0.73976059]
[1759197655954,1.02409102,114540.0,114530.0,0.4680483]
[1759197656256,1.02409102,114540.0,114530.0,0.73976059]
[1759197656856,1.00356469,114540.0,114530.0,0.73976059]
[1759197658050,0.20072469,114540.0,114530.0,0.73976059]
[1759197658250,1.00352469,114540.0,114530.0,0.73976059]
[1759197659959,0.20072469,114540.0,114530.0,0.73976059]
[1759197660351,1.00352469,114540.0,114530.0,0.73976059]
[1759197660858,0.20072469,114540.0,114530.0,0.73976059]
[1759197661047,1.00352469,114540.0,114530.0,0.73976059]
[1759197661950,0.20072469,114540.0,114530.0,0.73976059]
[1759197662247,1.00352469,114540.0,114530.0,0.73976059]
[1759197662445,1.02407525,114540.0,114530.0,0.73976059]
[1759197662859,0.21234329,114540.0,114530.0,0.73976059]
[1759197663059,1.01514329,114540.0,114530.0,0.73976059]
[1759197663259,0.21234329,114540.0,114530.0,0.73976059]
[1759197666263,0.21234329,114540.0,114530.0,1.41147288]
[1759197666264,0.10205269,114540.0,114530.0,1.41147288]
[1759197666460,0.01313,114550.0,114540.0,0.0872407]
[1759197666665,0.033687,114550.0,114540.0,2.06589757]
[1759197666962,0.033687,114550.0,114540.0,2.46589757]
[1759197667264,0.01393,114570.0,114550.0,0.0872331]
[1759197667463,0.01313,114570.0,114560.0,1.70694458]
[1759197667665,0.01353,114570.0,114560.0,2.06774458]
[1759197667962,0.1007477,114570.0,114560.0,2.06774458]
[1759197668159,0.1007477,114570.0,114560.0,2.07642634]
[1759197668662,0.1007477,114570.0,114560.0,1.26502458]
[1759197669161,0.171146,114570.0,114560.0,2.06770458]
[1759197669666,0.180146,114570.0,114560.0,2.06770458]
[1759197669860,0.171146,114570.0,114560.0,2.07870458]
[1759197670553,0.171146,114570.0,114560.0,1.27602458]
[1759197671162,0.171146,114570.0,114560.0,2.07866458]
[1759197672552,0.171146,114570.0,114560.0,1.27602458]
[1759197672755,0.171146,114570.0,114560.0,2.07862458]
[1759197673764,0.171146,114570.0,114560.0,2.07858458]
[1759197673965,0.171146,114570.0,114560.0,1.27602458]
[1759197674265,0.171146,114570.0,114560.0,2.07858458]
[1759197675665,0.171146,114570.0,114560.0,1.27602458]
[1759197675866,0.171146,114570.0,114560.0,2.07854458]
[1759197676065,0.171146,114570.0,114560.0,0.7326]
[1759197676066,0.192916,114570.0,114560.0,0.7326]
[1759197676365,0.192916,114570.0,114560.0,2.07854458]
[1759197677465,0.192916,114570.0,114560.0,0.7326]
[1759197677661,0.192916,114570.0,114560.0,1.27602458]
[1759197677866,0.192916,114570.0,114560.0,2.07850458]
[1759197679469,0.192916,114570.0,114560.0,1.27602458]
[1759197679872,0.192916,114570.0,114560.0,1.53504]
[1759197680068,0.192916,114570.0,114560.0,2.07846458]
[1759197680374,0.192916,114570.0,114560.0,1.27602458]
[1759197680571,0.192916,114570.0,114560.0,1.53504]
[1759197680868,0.192916,114570.0,114560.0,2.07846458]
[1759197682262,0.192916,114570.0,114560.0,2.07842458]
[1759197683858,0.192916,114570.0,114560.0,1.27602458]
[1759197684064,0.192916,114570.0,114560.0,2.07838458]
[1759197685066,0.192916,114570.0,114560.0,1.27602458]
[1759197685266,0.192916,114570.0,114560.0,2.07838458]
[1759197685570,0.192916,114570.0,114560.0,1.27602458]
[1759197685970,0.46462829,114570.0,114560.0,0.7326]
[1759197686158,0.46462829,114570.0,114560.0,1.80663229]
[1759197686675,0.46462829,114570.0,114560.0,1.00431229]
[1759197686968,0.46462829,114570.0,114560.0,1.80663229]
[1759197686969,0.48513261,114570.0,114560.0,1.80663229]
[1759197689365,0.46462829,114570.0,114560.0,1.80663229]
[1759197689769,0.4851554,114570.0,114560.0,1.80663229]
[1759197689967,0.4851554,114570.0,114560.0,1.17408]
[1759197690270,0.4851554,114570.0,114560.0,1.44579229]
[1759197692173,0.4851554,114570.0,114560.0,0.64351229]
[1759197694774,0.4851554,114570.0,114560.0,0.73073759]
[1759197695275,0.12622541,114570.0,114560.0,1.36324988]
[1759197695468,0.10405541,114570.0,114560.0,1.36324988]
[1759197695771,0.10445541,114570.0,114560.0,1.36324988]
[1759197696471,0.19132144,114570.0,114560.0,1.36324988]
[1759197696672,0.19172144,114570.0,114560.0,1.36324988]
[1759197702582,0.10450374,114570.0,114560.0,1.36324988]
[1759197702786,0.0004,114570.0,114560.0,2.09769843]
[1759197702991,0.100281,114580.0,114570.0,0.0872177]
[1759197703184,0.100281,114580.0,114570.0,1.79356228]
[1759197703185,0.12088221,114580.0,114570.0,1.79356228]
[1759197703887,0.100281,114580.0,114570.0,1.70634458]
[1759197704084,0.114281,114580.0,114570.0,1.70634458]
[1759197704284,0.13487437,114580.0,114570.0,1.70634458]
[1759197704991,0.12987437,114580.0,114570.0,1.70634458]
[1759197705190,0.12987437,114580.0,114570.0,1.43463229]
[1759197705995,0.12087437,114580.0,114570.0,1.44363229]
[1759197706593,0.12087437,114580.0,114570.0,1.44563229]
[1759197707691,0.1892225,114580.0,114570.0,1.44563229]
[1759197710591,0.1892225,114580.0,114570.0,1.71734458]
[1759197710795,0.1892225,114580.0,114570.0,1.44563229]
[1759197712894,0.1892225,114580.0,114570.0,1.71734458]
[1759197713797,0.1892225,114580.0,114570.0,2.07814458]
[1759197714297,0.1892225,114580.0,114570.0,1.80617634]
[1759197715396,0.1892225,114580.0,114570.0,1.89339404]
[1759197719301,0.1892225,114580.0,114570.0,2.16485038]
[1759197725002,0.1892225,114580.0,114570.0,1.80617634]
[1759197726401,0.1892225,114580.0,114570.0,1.53472]
[1759197726700,0.1892225,114580.0,114570.0,1.80617634]
[1759197727509,0.1892225,114580.0,114570.0,1.80581634]
[1759197727909,0.1892225,114580.0,114570.0,1.89303404]
[1759197733214,0.1892225,114580.0,114570.0,2.16449038]
[1759197733512,0.1892225,114580.0,114570.0,1.89303404]
[1759197734010,0.1892225,114580.0,114570.0,2.16449038]
[1759197734922,0.1892225,114580.0,114570.0,1.6215777]
[1759197735218,0.1892225,114580.0,114570.0,2.16449038]
[1759197735409,0.1892225,114580.0,114570.0,1.80581634]
[1759197737413,0.1892225,114580.0,114570.0,1.80565634]
[1759197738322,0.1892225,114580.0,114570.0,1.89287404]
[1759197738513,0.1892225,114580.0,114570.0,1.80565634]
[1759197741115,0.1892225,114580.0,114570.0,1.89287404]
[1759197745117,0.1020115,114580.0,114570.0,1.89287404]
[1759197745322,0.1892216,114580.0,114570.0,2.16433038]
[1759197745718,0.1896216,114580.0,114570.0,2.16433038]
[1759197746019,0.16902823,114580.0,114570.0,2.16433038]
[1759197746318,0.16902823,114580.0,114570.0,2.22706664]
[1759197746616,0.0004,114580.0,114570.0,2.22706664]
[1759197746818,0.10977667,114600.0,114580.0,0.0872101]
[1759197746819,0.1010711,114600.0,114580.0,0.0872101]
[1759197747022,0.12088743,114600.0,114590.0,1.52093884]
[1759197747323,0.12128743,114600.0,114590.0,1.43373634]
[1759197748219,0.12128743,114600.0,114590.0,1.43873634]
[1759197748423,0.12128743,114600.0,114590.0,1.52593884]
[1759197748622,0.12128743,114600.0,114590.0,1.52093884]
[1759197749425,0.18954705,114600.0,114590.0,1.52093884]
[1759197752524,0.18954705,114600.0,114590.0,1.88173884]
[1759197752727,0.18954085,114600.0,114590.0,1.88173884]
[1759197752932,0.10234595,114600.0,114590.0,2.15319518]
[1759197753128,0.08132962,114600.0,114590.0,2.15319518]
[1759197753429,0.08172962,114600.0,114590.0,2.15319518]
[1759197753618,0.08132962,114600.0,114590.0,2.15319518]
[1759197753821,0.08172962,114600.0,114590.0,2.15319518]
[1759197754530,0.16892452,114600.0,114590.0,2.15319518]
[1759197755630,0.16892452,114600.0,114590.0,1.79437634]
[1759197756423,0.19084452,114600.0,114590.0,1.08025884]
[1759197756632,0.19084452,114600.0,114590.0,1.88153884]
[1759197756928,0.21143407,114600.0,114590.0,1.88153884]
[1759197757129,0.21143407,114600.0,114590.0,1.08025884]
[1759197757325,0.21143407,114600.0,114590.0,1.88449884]
[1759197757831,0.21143407,114600.0,114590.0,2.15595518]
[1759197757832,0.08924917,114600.0,114590.0,2.15595518]
[1759197758033,0.08924917,114600.0,114590.0,1.43435518]
[1759197758242,0.03457955,114600.0,114590.0,1.43435518]
[1759197758530,0.02058955,114600.0,114590.0,2.55595518]
[1759197758730,0.02098955,114600.0,114590.0,2.55295518]
[1759197758922,0.03198955,114600.0,114590.0,2.55295518]
[1759197759133,0.011,114600.0,114590.0,2.55295518]
[1759197759428,0.01382,114610.0,114600.0,0.0871949]
[1759197759624,0.08359398,114610.0,114600.0,0.99090758]
[1759197759927,0.10417833,114610.0,114600.0,0.99090758]
[1759197760130,0.10457833,114610.0,114600.0,0.99090758]
[1759197760931,0.10457833,114610.0,114600.0,0.99590758]
[1759197761132,0.10417833,114610.0,114600.0,0.99590758]
[1759197761433,0.10457833,114610.0,114600.0,0.99590758]
[1759197761736,0.11557833,114610.0,114600.0,0.99090758]
[1759197762429,0.04580435,114610.0,114600.0,0.99090758]
[1759197763639,0.03198435,114610.0,114600.0,0.99090758]
[1759197764132,0.03158435,114610.0,114600.0,0.99090758]
[1759197764326,0.04557435,114610.0,114600.0,0.99090758]
[1759197765238,0.0114,114610.0,114600.0,0.99090758]
[1759197765639,0.011,114610.0,114600.0,0.99090758]
[1759197765833,0.0114,114610.0,114600.0,0.99090758]
[1759197766136,0.011,114610.0,114600.0,1.39090758]
[1759197766338,0.0114,114610.0,114600.0,1.39090758]
[1759197766540,0.011,114610.0,114600.0,1.39090758]
[1759197766741,0.0114,114610.0,114600.0,1.39090758]
[1759197771849,0.0985873,114610.0,114600.0,1.39090758]
[1759197776246,0.0985873,114610.0,114600.0,1.66168625]
[1759197777254,0.1116273,114610.0,114600.0,1.57449135]
[1759197777454,0.1116273,114610.0,114600.0,1.66168625]
[1759197777854,0.1006273,114610.0,114600.0,2.46272625]
[1759197778155,0.01344,114610.0,114600.0,2.50969467]
[1759197779060,0.01344,114610.0,114600.0,2.52069467]
[1759197779557,0.01344,114610.0,114600.0,1.71965467]
[1759197779856,0.01344,114610.0,114600.0,2.52069467]
[1759197782762,0.1006273,114610.0,114600.0,2.52069467]
[1759197785364,0.12110771,114610.0,114600.0,2.52069467]
[1759197786659,0.1006273,114610.0,114600.0,2.52069467]
[1759197786864,0.01344,114610.0,114600.0,2.52069467]
[1759197787163,0.01344,114610.0,114600.0,1.67268625]
[1759197787362,0.0004,114610.0,114600.0,2.47368625]
[1759197787554,0.0004,114610.0,114600.0,2.53642251]
[1759197794469,0.1007746,114620.0,114610.0,0.0871873]
[1759197794668,0.1007746,114620.0,114610.0,0.9904482]
[1759197795067,0.1007746,114620.0,114610.0,1.26167865]
[1759197795468,0.01359,114620.0,114610.0,1.26167865]
[1759197795669,0.01399,114620.0,114610.0,1.26167865]
[1759197795864,0.01399,114620.0,114610.0,1.26967865]
[1759197796064,0.01399,114620.0,114610.0,1.33241491]
[1759197796775,0.01399,114620.0,114610.0,1.32441491]
[1759197796965,0.0008,114640.0,114610.0,1.23722761]
[1759197797170,0.01304,114650.0,114640.0,0.0871644]
[1759197797371,0.19420517,114660.0,114650.0,0.0871568]
[1759197797572,0.19420517,114660.0,114650.0,0.9904177]
[1759197797773,0.19460517,114660.0,114650.0,0.9904177]
[1759197797972,0.19420517,114660.0,114650.0,0.9904177]
[1759197798172,0.19460517,114660.0,114650.0,0.9904177]
[1759197799877,0.19460517,114660.0,114650.0,0.63203045]
[1759197802580,0.19460517,114660.0,114650.0,1.43283045]
[1759197804580,0.19460517,114660.0,114650.0,0.63203045]
[1759197804776,0.1232844,114640.0,114630.0,0.40787876]
[1759197804975,0.1232844,114640.0,114630.0,1.43279045]
[1759197805386,0.39451485,114640.0,114630.0,0.3608]
[1759197805583,0.123292,114630.0,114620.0,0.3608]
[1759197805780,0.39452245,114630.0,114620.0,0.63203045]
[1759197805980,0.39452245,114630.0,114620.0,1.43275045]
[1759197805981,0.38952245,114630.0,114620.0,1.43275045]
[1759197806479,0.118292,114630.0,114620.0,1.43275045]
[1759197806680,0.12712745,114630.0,114620.0,1.44075045]
[1759197807383,0.4033579,114630.0,114620.0,1.43275045]
[1759197807580,0.4033579,114630.0,114620.0,1.16152]
[1759197807781,0.4033579,114630.0,114620.0,1.43279045]
[1759197808278,0.123292,114630.0,114620.0,1.43279045]
[1759197808484,0.123292,114630.0,114620.0,1.51997005]
[1759197808684,0.123292,114630.0,114620.0,1.7912005]
[1759197809186,0.14354619,114630.0,114620.0,1.7912005]
[1759197810289,0.14354619,114630.0,114620.0,0.9904405]
[1759197810491,0.14354619,114630.0,114620.0,1.7911605]
[1759197811189,0.14354619,114630.0,114620.0,1.7039809]
[1759197812290,0.14354619,114630.0,114620.0,1.7911606]
[1759197817094,0.123292,114630.0,114620.0,1.7911606]
[1759197824996,0.04112,114630.0,114620.0,1.7911606]
[1759197826096,0.1282922,114630.0,114620.0,1.7911606]
[1759197828995,0.1282922,114630.0,114620.0,1.7039809]
[1759197832296,0.1059222,114630.0,114620.0,1.7039809]
[1759197832495,0.005,114630.0,114620.0,2.50946991]
[1759197832806,0.1017069,114650.0,114640.0,0.0871645]
[1759197833094,0.0008,114650.0,114640.0,2.46999391]
[1759197833296,0.1009069,114650.0,114640.0,2.38282941]
[1759197833495,0.1001069,114650.0,114640.0,2.38282941]
[1759197833697,0.1005069,114650.0,114640.0,2.38282941]
[1759197834003,0.1005069,114650.0,114640.0,2.12037891]
[1759197834709,0.1005069,114650.0,114640.0,2.11159896]
[1759197835203,0.1005069,114650.0,114640.0,2.11459896]
[1759197835405,0.1005069,114650.0,114640.0,2.20176336]
[1759197836506,0.1005069,114650.0,114640.0,2.11459896]
[1759197837909,0.1005069,114650.0,114640.0,0.77153806]
[1759197838209,0.1005069,114650.0,114640.0,0.003]
[1759197838210,0.81367778,114650.0,114640.0,0.003]
[1759197839008,1.17447778,114650.0,114640.0,0.003]
[1759197841099,1.17447778,114650.0,114640.0,1e-07]
[1759197841798,0.90321784,114650.0,114640.0,1e-07]
[1759197841997,1.17447778,114650.0,114640.0,1e-07]
[1759197850110,0.90321784,114650.0,114640.0,1e-07]
[1759197850410,1.17447778,114650.0,114640.0,1e-07]
[1759197852007,1.20570813,114650.0,114640.0,1e-07]
[1759197852702,0.80570813,114650.0,114640.0,1e-07]
[1759197853010,1.57439778,114650.0,114640.0,1e-07]
[1759197853198,1.33476819,114650.0,114640.0,1e-07]
[1759197853402,1.57479778,114650.0,114640.0,1e-07]
[1759197854106,1.60602813,114650.0,114640.0,1e-07]
[1759197854514,1.57479778,114650.0,114640.0,1e-07]
[1759197856918,1.6216433,114650.0,114640.0,1e-07]
[1759197857312,1.292148,114650.0,114640.0,1e-07]
[1759197857617,0.491828,114650.0,114640.0,1e-07]
[1759197857917,1.29214789,114650.0,114640.0,0.3608001]
[1759197858616,0.08656553,114650.0,114640.0,1.11922394]
[1759197858814,0.05526094,114650.0,114640.0,1.11922394]
[1759197859121,0.05486094,114650.0,114640.0,1.11922394]
[1759197859419,0.14241724,114650.0,114640.0,1.11922394]
[1759197859923,0.14241724,114650.0,114640.0,0.63206004]
[1759197862115,0.14241724,114650.0,114640.0,0.3608001]
[1759197862421,0.14241724,114650.0,114640.0,0.63206004]
[1759197876229,0.14241724,114650.0,114640.0,0.3608001]
[1759197876526,0.14241724,114650.0,114640.0,0.63206004]
[1759197877417,0.14241724,114650.0,114640.0,0.71922544]
[1759197880929,0.01335,114650.0,114640.0,1.11922544]
[1759197881125,0.01295,114650.0,114640.0,1.11922544]
[1759197881324,0.01335,114650.0,114640.0,1.03206004]
[1759197881830,0.01335,114650.0,114640.0,0.63206004]
[1759197882024,0.1223377,114650.0,114640.0,0.63206004]
[1759197883232,0.14261443,114650.0,114640.0,0.63206004]
[1759197886737,0.14262756,114650.0,114640.0,1.43182004]
[1759197887332,0.14262756,114650.0,114640.0,1.1605601]
[1759197887631,0.14262756,114650.0,114640.0,1.43182004]
[1759197887828,0.14262756,114650.0,114640.0,0.63206004]
[1759197888230,0.14262756,114650.0,114640.0,0.71922544]
[1759197888429,0.14262756,114650.0,114640.0,0.7661635]
[1759197889229,0.14262756,114650.0,114640.0,0.71922544]
[1759197890628,0.05546986,114650.0,114640.0,0.71922544]
[1759197890928,0.03363986,114650.0,114640.0,0.7661635]
[1759197891131,0.05561986,114650.0,114640.0,0.6789981]
[1759197891430,0.14317756,114650.0,114640.0,0.6789981]
[1759197894638,0.14317756,114650.0,114640.0,0.63206004]
[1759197895038,0.14317756,114650.0,114640.0,0.3608001]
[1759197895239,0.14317756,114650.0,114640.0,0.63206004]
[1759197896442,0.14317756,114650.0,114640.0,0.3608001]
[1759197896642,0.14317756,114650.0,114640.0,0.63206004]
[1759197898141,0.14317756,114650.0,114640.0,0.3608001]
[1759197898336,0.14317756,114650.0,114640.0,0.63206004]
[1759197898843,0.14317756,114650.0,114640.0,0.90315068]
[1759197900039,0.14317756,114650.0,114640.0,0.63197539]
[1759197900635,0.14319275,114650.0,114640.0,0.63197539]
[1759197902441,0.41436804,114650.0,114640.0,0.63197539]
[1759197902742,0.81436804,114650.0,114640.0,0.63197539]
[1759197903336,0.81436804,114650.0,114640.0,0.3608001]
[1759197903645,2.29262885,114650.0,114640.0,1e-07]
[1759197904443,2.32394849,114650.0,114640.0,1e-07]
[1759197906936,2.29262885,114650.0,114640.0,1e-07]
[1759197913446,2.32390439,114650.0,114640.0,1e-07]
[1759197914041,2.29262885,114650.0,114640.0,1e-07]
[1759197914748,2.32390266,114650.0,114640.0,1e-07]
[1759197915248,2.29262885,114650.0,114640.0,1e-07]
[1759197915547,2.32390226,114650.0,114640.0,1e-07]
[1759197916543,1.78155168,114650.0,114640.0,1e-07]
[1759197916744,2.32390226,114650.0,114640.0,1e-07]
[1759197916945,2.27705674,114650.0,114640.0,1e-07]
[1759197928452,2.32390226,114650.0,114640.0,1e-07]
[1759197929852,1.78155168,114650.0,114640.0,1e-07]
[1759197930056,2.32390226,114650.0,114640.0,1e-07]
[1759197931456,2.27705674,114650.0,114640.0,1e-07]
[1759197931659,2.27693674,114650.0,114640.0,1e-07]
[1759197932364,2.32378226,114650.0,114640.0,1e-07]
[1759197933157,2.32374031,114650.0,114640.0,1e-07]
[1759197933349,2.2924669,114650.0,114640.0,1e-07]
[1759197935259,2.32383277,114650.0,114640.0,1e-07]
[1759197936859,2.32383943,114650.0,114640.0,1e-07]
[1759197937248,2.27699391,114650.0,114640.0,1e-07]
[1759197937658,2.32383943,114650.0,114640.0,1e-07]
[1759197939551,1.92383943,114650.0,114640.0,1e-07]
[1759197945359,1.92384588,114650.0,114640.0,1e-07]
[1759197946167,1.89247356,114650.0,114640.0,1e-07]
[1759197946961,1.84562804,114650.0,114640.0,1e-07]
[1759197950263,0.1094592,114620.0,114610.0,0.3608]
[1759197950568,1.50268337,114620.0,114610.0,0.3608]
[1759197950960,0.1094668,114610.0,114600.0,0.71916859]
[1759197951157,0.40091185,114610.0,114600.0,0.71916859]
[1759197951664,0.39091185,114610.0,114600.0,0.71916859]
[1759197952266,0.39091185,114610.0,114600.0,0.73116859]
[1759197952569,0.39091185,114610.0,114600.0,0.64397529]
[1759197952770,0.45946539,114610.0,114600.0,0.64397529]
[1759197952966,0.45946539,114610.0,114600.0,0.63197529]
[1759197953759,0.48246539,114610.0,114600.0,0.63197529]
[1759197954670,0.48246539,114610.0,114600.0,0.3608]
[1759197954870,0.48246539,114610.0,114590.0,0.63197529]
[1759197954871,0.1094744,114600.0,114590.0,0.63197529]
[1759197955067,0.93779318,114600.0,114590.0,0.63197529]
[1759197956272,0.93779318,114600.0,114590.0,0.64297529]
[1759197956473,0.94679318,114600.0,114590.0,0.64297529]
[1759197956971,0.92652342,114600.0,114590.0,0.68991335]
[1759197957168,0.92652342,114600.0,114590.0,0.77711535]
[1759197957975,0.9177144,114600.0,114590.0,0.77711535]
[1759197958374,0.83052,114600.0,114590.0,0.77711535]
[1759197959079,0.92652638,114600.0,114590.0,0.459002]
[1759197959376,0.92652638,114600.0,114590.0,0.68991335]
[1759197960376,0.92652638,114600.0,114590.0,0.69012861]
[1759197960776,0.92652638,114600.0,114590.0,0.64319055]
[1759197962071,0.92652638,114600.0,114590.0,0.3718]
[1759197965982,1.19791693,114600.0,114590.0,0.3718]
[1759197966184,1.83010748,114600.0,114590.0,0.011]
[1759197966379,1.57889397,114600.0,114590.0,0.011]
[1759197967382,0.109482,114590.0,114580.0,0.3608]
[1759197967583,0.37387255,114590.0,114580.0,0.3608]
[1759197969087,0.37387255,114590.0,114580.0,0.3668]
[1759197969383,0.121482,114590.0,114580.0,0.3668]
[1759197973986,0.04128,114590.0,114580.0,0.72540015]
[1759197974178,0.8406,114590.0,114580.0,0.72540015]
[1759197974579,0.0194,114590.0,114580.0,1.48620015]
[1759197974774,0.0194,114590.0,114580.0,1.53313821]
[1759197975177,0.019,114590.0,114580.0,1.53313821]
[1759197975376,0.0194,114590.0,114580.0,1.53313821]
[1759197975581,0.106602,114590.0,114580.0,1.53313821]
[1759197976992,0.0194,114590.0,114580.0,2.24544861]
[1759197977190,0.00521944,114590.0,114580.0,2.26109463]
[1759197977392,0.09242144,114590.0,114580.0,2.26109463]
[1759197977587,0.09202144,114590.0,114580.0,2.26109463]
[1759197977788,0.09242144,114590.0,114580.0,2.26109463]
[1759197978388,0.10574144,114590.0,114580.0,2.26109463]
[1759197978891,0.10574144,114590.0,114580.0,1.86109463]
[1759197979083,0.10574144,114590.0,114580.0,1.84529955]
[1759197980590,0.10574144,114590.0,114580.0,1.79831055]
[1759197981190,0.10574144,114590.0,114580.0,2.19831055]
[1759197981790,0.10574144,114590.0,114580.0,2.24533351]
[1759197982296,0.10574144,114590.0,114580.0,1.04601351]
[1759197982496,0.12848144,114590.0,114580.0,0.77462296]
[1759197982999,0.12848144,114590.0,114580.0,0.7276]
[1759197984398,0.12848144,114590.0,114580.0,0.77462296]
[1759197985492,0.12848144,114590.0,114580.0,0.41382296]
[1759197985794,0.12848144,114590.0,114580.0,0.3668]
[1759197987000,0.14867128,114590.0,114580.0,0.3668]
[1759197993198,0.14867128,114590.0,114580.0,0.63819055]
[1759197993406,0.14867128,114590.0,114580.0,0.99899055]
[1759197995807,0.14867128,114590.0,114580.0,0.7276]
[1759197996008,0.14867128,114590.0,114580.0,0.99899055]
[1759197996408,0.14867128,114590.0,114580.0,0.7276]
[1759197996608,0.14867128,114590.0,114580.0,0.99899055]
[1759197997000,0.12848144,114590.0,114580.0,1.04601351]
[1759197999008,0.10574124,114590.0,114580.0,1.44601351]
[1759197999395,0.10574124,114590.0,114580.0,1.84537351]
[1759198001905,0.10574124,114590.0,114580.0,1.04601351]
[1759198002110,0.10574124,114590.0,114580.0,1.84537351]
[1759198002817,0.10574124,114590.0,114580.0,1.04601351]
[1759198003220,0.10574124,114590.0,114580.0,1.84537351]
[1759198003923,0.10574124,114590.0,114580.0,1.04601351]
[1759198004312,0.10574124,114590.0,114580.0,1.84537351]
[1759198005119,0.10574124,114590.0,114580.0,1.04601351]
[1759198005320,0.10574124,114590.0,114580.0,1.84537351]
[1759198007418,0.10574124,114590.0,114580.0,1.48457351]
[1759198010214,0.12704124,114590.0,114580.0,0.68521351]
[1759198010719,0.14724394,114590.0,114580.0,1.48453351]
[1759198018636,0.14724394,114590.0,114580.0,0.68521351]
[1759198018841,0.14724394,114590.0,114580.0,1.48449351]
[1759198020336,0.14724394,114590.0,114580.0,1.7559786]
[1759198020833,0.14724394,114590.0,114580.0,1.843188]
[1759198025039,0.03874214,114590.0,114580.0,1.843188]
[1759198025234,0.01853944,114590.0,114580.0,1.85874912]
[1759198026140,0.10574114,114590.0,114580.0,1.85874912]
[1759198026536,0.10574114,114590.0,114580.0,1.05946912]
[1759198026732,0.10574114,114590.0,114580.0,1.85870912]
[1759198028542,0.10574114,114590.0,114580.0,1.05946912]
[1759198029143,0.10574114,114590.0,114580.0,1.85866912]
[1759198031547,0.17657356,114590.0,114580.0,1.85866912]
[1759198033849,0.17657356,114590.0,114580.0,1.05946912]
[1759198034147,0.17657356,114590.0,114580.0,1.85862912]
[1759198035547,0.17657356,114590.0,114580.0,1.05946912]
[1759198035747,0.17657356,114590.0,114580.0,1.85858912]
[1759198037047,0.17657356,114590.0,114580.0,1.84308335]
[1759198038442,0.16239226,114590.0,114580.0,1.84308335]
[1759198040750,0.16239226,114590.0,114580.0,1.04396335]
[1759198040951,0.16239226,114590.0,114580.0,1.84304335]
[1759198041152,0.18395226,114590.0,114580.0,0.95675395]
[1759198041346,0.18395226,114590.0,114580.0,1.75583395]
[1759198041547,0.18395226,114590.0,114580.0,1.48439613]
[1759198041753,0.18395226,114590.0,114580.0,0.68531613]
[1759198041940,0.18395226,114590.0,114580.0,1.48439613]
[1759198042351,0.18395226,114590.0,114580.0,1.75583395]
[1759198045549,0.47557687,114590.0,114580.0,0.68531613]
[1759198045751,0.47557687,114590.0,114580.0,1.48435613]
[1759198045951,0.87557687,114590.0,114580.0,1.48435613]
[1759198046154,0.87557687,114590.0,114580.0,1.43727782]
[1759198046653,0.87557687,114590.0,114580.0,0.3668]
[1759198047152,0.85539008,114590.0,114580.0,0.41387831]
[1759198051657,0.87557118,114590.0,114580.0,0.41387831]
[1759198055475,0.85539008,114590.0,114580.0,0.41387831]
[1759198055762,0.8755686,114590.0,114580.0,0.41387831]
[1759198058557,1.6745286,114590.0,114580.0,0.41387831]
[1759198059164,0.8755686,114590.0,114580.0,0.41387831]
[1759198059365,0.8755686,114590.0,114580.0,0.3668]
[1759198059660,0.20413078,114590.0,114580.0,0.3668]
[1759198059963,1.2744886,114590.0,114580.0,0.41387831]
[1759198060766,0.4755686,114590.0,114580.0,0.41387831]
[1759198060960,1.2744886,114590.0,114580.0,0.63823782]
[1759198061160,1.2744886,114590.0,114580.0,0.68531613]
[1759198061360,1.2744886,114590.0,114580.0,0.63823782]
[1759198063967,0.4755686,114590.0,114580.0,0.63823782]
[1759198064268,1.2744886,114590.0,114580.0,0.63823782]
[1759198064967,1.2744486,114590.0,114580.0,0.63823782]
[1759198067165,1.2744486,114590.0,114580.0,0.3668]
[1759198067369,1.2744486,114590.0,114580.0,0.63823782]
[1759198068371,1.2744486,114590.0,114580.0,0.3668]
[1759198068974,1.2744486,114590.0,114580.0,0.006]
[1759198069663,1.94588642,114590.0,114580.0,0.006]
[1759198071870,2.30668642,114590.0,114580.0,0.006]
[1759198078475,0.1234676,114570.0,114560.0,0.40796629]
[1759198078771,1.19374542,114570.0,114560.0,0.36088798]
[1759198078961,1.21392051,114570.0,114560.0,0.36088798]
[1759198079165,1.21392051,114570.0,114560.0,8.798e-05]
[1759198079968,1.21388051,114570.0,114560.0,8.798e-05]
[1759198080567,1.21388051,114570.0,114560.0,0.01708798]
[1759198080771,1.21388051,114570.0,114560.0,0.00308798]
[1759198081568,1.21388051,114570.0,114560.0,0.01208798]
[1759198081779,1.22188051,114570.0,114560.0,0.01208798]
[1759198081976,0.42308051,114570.0,114560.0,0.01208798]
[1759198082271,1.22206703,114570.0,114560.0,0.01208798]
[1759198085177,0.42326703,114570.0,114560.0,0.01208798]
[1759198085374,1.22206703,114570.0,114560.0,0.01208798]
[1759198086776,0.42326703,114570.0,114560.0,0.01208798]
[1759198086978,1.22206703,114570.0,114560.0,0.01208798]
[1759198087972,0.42326703,114570.0,114560.0,0.01208798]